Cogmind - Beta 11.1 @@@ ROGUE MODE // 2022.06.10 @ 15:42:54 Player: SC1ENCE Result: Destroyed by S-27 Virus with Autogun Performance ------------- Evolutions (3) 1500 Regions Visited (4) 800 Robots Destroyed (186) 930 Value Destroyed (4869) 4869 Prototype IDs (6) 120 Alien Tech Used (0) 0 Bonus (1278) 1278 TOTAL SCORE: 9497 Bonus ------- High Alert Combat Kills 1278 Cogmind --------- Core Integrity 0/700 Matter 233/300 Energy 68/100 System Corruption 5% Temperature Cool (0) Movement Rolling (170) Ox6 Location -7/Factory Parts ------- > --- POWER (1) -------- (None) > --- PROPULSION (4) --- Wheel > --- UTILITY (6) ------ Coolant Injector High-capacity Storage Unit Advanced Visual Processing Unit Advanced Targeting Computer Reactive Plating Improved Field Recycling Unit > --- WEAPON (2) ------- Beam Rifle Flak Gun > --- INVENTORY (20) --- Light Nuclear Core Micro Nuclear Core Wheel Wheel Improved Field Recycling Unit (0) Advanced Assault Cannon Peak State ------------ > --- POWER ------------ Angular Momentum Engine > --- PROPULSION ------- Advanced Treads Advanced Treads Advanced Treads Carbon-fiber Leg > --- UTILITY ---------- Advanced Heat Sink High-capacity Storage Unit Advanced Visual Processing Unit Advanced Targeting Computer Reactive Plating Improved Field Recycling Unit > --- WEAPON ----------- Advanced Assault Cannon Proton Missile Launcher > --- INVENTORY -------- Light Ion Engine Light Nuclear Core Micro Nuclear Core Advanced Treads Advanced Treads Wheel Wheel Wheel Wheel Coolant Injector Reactive Plating Improved Field Recycling Unit Arc Projector Beam Rifle Heavy Laser Flak Gun [Rating: 48] Favorites ----------- Power Light Nuclear Core Engine Light Ion Engine Power Core Light Nuclear Core Propulsion Wheel Treads Light Treads Leg Aluminum Leg Wheel Wheel Utility Advanced Targeting Computer Device Improved Heat Sink Storage High-capacity Storage Unit Processor Advanced Targeting Computer Protection Hardened Medium Armor Plating Weapon High-powered Shotgun Energy Gun Beam Rifle Ballistic Gun High-powered Shotgun Ballistic Cannon Gauss Cannon Launcher Mini Grenade Launcher Build | -11 -10 -9 -8 -7 ------- Run | Scr Mat Mat Mat Fac Slots Evolved 6 | . . 2 2 2 Power . | . . . . . Propulsion 2 | . . 2 . . Utility 4 | . . . 2 2 Weapon . | . . . . . Parts Attached 187 | 7 7 30 55 88 Power 18 | 1 1 5 4 7 Engine 13 | 1 1 5 1 5 Core 5 | . . . 3 2 Reactor . | . . . . . Propulsion 76 | 2 2 14 22 36 Treads 35 | 1 1 10 7 16 Leg 17 | . . 1 8 8 Wheel 24 | 1 1 3 7 12 Hover . | . . . . . Flight . | . . . . . Utility 42 | 2 1 2 12 25 Device 14 | 1 . . 3 10 Storage 6 | 1 . 2 1 2 Processor 9 | . 1 . 4 4 Hackware . | . . . . . Protection 13 | . . . 4 9 Artifact . | . . . . . Weapon 51 | 2 3 9 17 20 Energy Gun 14 | . . 3 3 8 Energy Cannon . | . . . . . Ballistic Gun 20 | 2 1 3 8 6 Ballistic Cannon 3 | . . . 1 2 Launcher 14 | . 2 3 5 4 Special Weapon . | . . . . . Impact Weapon . | . . . . . Slashing Weapon . | . . . . . Piercing Weapon . | . . . . . Special Melee Weapon . | . . . . . Unidentified Prototypes 3 | . . 3 . . Parts Lost 63 | . 2 . 25 36 Power 8 | . 1 . 3 4 Propulsion 28 | . 1 . 11 16 Utility 16 | . . . 7 9 Weapon 11 | . . . 4 7 Highest Loss Streak 18 | . 2 . 18 15 To Critical Strikes . | . . . . . Average Slot Usage (%) 96 | . 96 100 94 96 Engine 5 | . 12 11 1 3 Core 3 | . . . 6 2 Treads 18 | . 14 32 11 16 Leg 6 | . . . 12 5 Wheel 8 | . 12 11 9 6 Device 7 | . 12 . 8 9 Storage 10 | . 14 11 10 9 Processor 13 | . . 11 12 15 Protection 4 | . . . 3 7 Energy Gun 3 | . . 4 1 4 Ballistic Gun 10 | . 20 14 13 6 Ballistic Cannon 1 | . . . . 3 Launcher 1 | . 7 2 2 . Naked Turns . | . . . . . Heaviest Build 89 | 13 14 34 41 89 Greatest Support 66 | 10 10 46 40 66 Greatest Overweight (x) 10 | 1 3 3 10 8 Average Overweight (x) 3 | . 1 2 2 5 Largest Inventory Capacity 20 | 8 8 15 15 20 Average Capacity 16 | 7 8 12 15 19 Most Carried 20 | 8 8 15 15 20 Average Carried 15 | 5 7 12 12 18 Final Capacity 20 | 8 8 15 15 20 Final Carried 15 | 8 8 15 15 6 Class Distribution -------------------- 67% | Scavenger-Mutant 32% | Mutant Dominant Class ---------------- Mutant | -10/Materials Mutant | -9/Materials Scavenger-Mutant | -8/Materials Scavenger-Mutant | -7/Factory Resources | -11 -10 -9 -8 -7 ----------- Run | Scr Mat Mat Mat Fac Matter Collected 4504 | 294 32 1089 1091 1998 Remotely 470 | 61 32 . . 377 Salvage Created 5585 | 80 133 1176 1676 2520 Parts 371 | 4 22 97 119 129 Haulers Intercepted 5 | . . 2 1 2 Recyclers Shooed 7 | . . . 2 5 Parts Field Recycled . | . . . . . Retrieved Matter . | . . . . . Parts Self-Destructed . | . . . . . Prevented . | . . . . . Kills | -11 -10 -9 -8 -7 ------- Run | Scr Mat Mat Mat Fac Combat Hostiles Destroyed 108 | . 7 23 39 39 Guns 59 | . 2 12 22 23 Cannons 14 | . . . 2 12 AOE 34 | . 5 11 15 3 Classes Destroyed 15 | 1 5 4 3 2 Worker 25 | . 2 1 7 15 Builder 21 | . 2 4 8 7 Tunneler 3 | . . . 2 1 Hauler 5 | . . 2 1 2 Recycler 18 | 1 . 3 4 10 Operator 2 | . 1 1 . . Watcher 4 | . . 2 2 . Swarmer 21 | . 5 4 12 . Grunt 53 | . 2 10 20 21 Brawler 3 | . . 2 . 1 Sentry 15 | . . 7 5 3 Specialist 7 | . . . 1 6 Hunter 4 | . . . . 4 Programmer 4 | . . . . 4 Heavy 1 | . . . 1 . Best Kill Streak 16 | 1 11 8 16 8 Combat Bots Only 7 | . 6 5 7 4 Max Kills in Single Turn 3 | 1 3 3 3 2 Gunslinging . | . . . . . Exploded 3 | . 1 3 3 1 Melee . | . . . . . Uniques/NPCs Destroyed . | . . . . . Combat | -11 -10 -9 -8 -7 -------- Run | Scr Mat Mat Mat Fac Damage Taken 11441 | . 469 637 3290 7045 Core 1182 | . 154 82 238 708 Absorbed by Shields 83 | . . . . 83 Regen/Repaired (Parts) 50 | . . . 50 . Core Remaining (%) 68 | 100 38 79 56 . Volleys Fired 385 | 4 14 58 104 205 Largest 2 | 2 2 2 2 2 Hottest 135 | 40 50 79 100 135 Shots Fired 699 | 8 26 99 193 373 Gun 508 | 8 17 87 147 249 Cannon 128 | . . . 14 114 Launcher 63 | . 9 12 32 10 Special . | . . . . . Kinetic 450 | 8 17 73 138 214 Thermal 173 | . . 10 23 140 Explosive 53 | . 9 12 32 . Electromagnetic 23 | . . 4 . 19 Robot Hit Streak 17 | 6 8 9 13 17 Robot Miss Streak 7 | 2 2 3 6 7 Penetration Max 1 | . . . . 1 Secondary Targets 2 | . . . . 2 Max Gunslinging Chain 1 | . . . . 1 Shots Hit Robots 506 | 6 14 65 128 293 Core Hits 390 | 2 14 59 120 195 Critical Kills 1 | . . . 1 . Critical Parts Destroyed 1 | . . . 1 . Critical Strikes 19 | . . . 3 16 Burn 5 | . . . 1 4 Destroy 2 | . . . 2 . Blast 12 | . . . . 12 Melee Attacks . | . . . . . Impact . | . . . . . Slashing . | . . . . . Piercing . | . . . . . Sneak Attacks . | . . . . . Combat Hostiles . | . . . . . Follow-up Attacks . | . . . . . Damage Inflicted 13031 | 84 707 1669 4055 6516 Guns 6708 | 84 131 917 2026 3550 Cannons 2733 | . . . 271 2462 Explosions 3508 | . 576 746 1758 428 Melee . | . . . . . Ramming 82 | . . 6 . 76 Kinetic 7020 | 84 131 744 2031 4030 Thermal 2429 | . . 172 298 1959 Explosive 3076 | . 576 691 1726 83 Electromagnetic 424 | . . 56 . 368 Impact . | . . . . . Slashing . | . . . . . Piercing . | . . . . . Highest Corruption 9 | . 9 2 3 5 Average Corruption 3 | . 8 2 2 3 Corruption Purged . | . . . . . Corruption Blocked . | . . . . . Effects 95 | . 2 10 26 57 Message Errors 18 | . . 2 5 11 Matter Fused 17 | . 2 2 5 8 Heat Flow Errors 11 | . . . 2 9 Energy Discharges 12 | . . 1 5 6 Parts Rejected 4 | . . . 1 3 Data Loss (minor) 11 | . . 2 3 6 Data Loss (major) 4 | . . . 2 2 Misfires 9 | . . 2 2 5 Alerts 1 | . . . . 1 Weapon Failures 8 | . . 1 1 6 Overload Shots . | . . . . . Overflow Damage 189 | . 4 30 68 87 Projectiles 75 | . . . 5 70 Explosions 97 | . 4 30 63 . Melee 17 | . . . . 17 Knockbacks 28 | . . . 3 25 Impact . | . . . . . Kinetic 27 | . . . 3 24 Secondary 1 | . . . . 1 Self-Inflicted Damage 416 | . 1 65 205 145 Shots 13 | . 1 3 6 3 Rammed 7 | . . 2 . 5 Targets Rammed 7 | . . 2 . 5 Kicked . | . . . . . Crushed . | . . . . . Highest Temperature 615 | . 14 38 281 615 Average Temperature 119 | . 4 7 72 156 Received Heat Transfer 3261 | . 90 237 1206 1728 Effects 34 | . . . . 34 Shutdowns 7 | . . . . 7 Energy Bleed 6 | . . . . 6 Interference 11 | . . . . 11 Matter Decay 1 | . . . . 1 Short Circuit 4 | . . . . 4 Damage (minor) 1 | . . . . 1 Damage (major) 4 | . . . . 4 Siege Activations . | . . . . . Robots Corrupted . | . . . . . Combat Hostiles . | . . . . . Parts Fried . | . . . . . Impact Corruptions 1 | . . . . 1 Robots Melted 1 | . . . . 1 Combat Hostiles 1 | . . . . 1 Parts Melted 6 | . . . 1 5 Heat Transferred 5861 | . . 359 716 4786 Parts Sabotaged . | . . . . . Parts Stolen . | . . . . . Parts Stripped . | . . . . . Power Chain Reactions 2 | . . 1 . 1 Missiles Intercepted . | . . . . . Alert | -11 -10 -9 -8 -7 ------- Run | Scr Mat Mat Mat Fac Peak Influence 1068 | 5 292 1068 969 1068 Initial 438 | . 3 122 438 413 Average 582 | 1 144 701 617 574 Maximum Alert Level 3 | . 1 3 3 3 Low Security (%) 5 | 100 57 2 4 . Level 1 10 | . 42 3 3 12 Level 2 52 | . . 37 59 60 Level 3 31 | . . 56 33 26 Level 4 . | . . . . . Level 5 . | . . . . . High Security . | . . . . . Max Security . | . . . . . Squads Dispatched 32 | . 1 2 9 20 Investigation 12 | . . 1 3 8 Extermination 4 | . . . . 4 Reinforcement 14 | . 1 1 6 6 Assault 2 | . . . . 2 Garrison . | . . . . . Intercept . | . . . . . Searches Triggered . | . . . . . Construction Impeded 4 | . . . 2 2 Haulers Reinforced . | . . . . . Active Scanning Responses . | . . . . . Cargo Convoy Interrupts 1 | . . . . 1 Stealth | -11 -10 -9 -8 -7 --------- Run | Scr Mat Mat Mat Fac Distress Signals 8 | . 1 1 5 1 Communications Jammed . | . . . . . Distress Signals . | . . . . . Times Spotted 151 | . 11 31 51 58 Peak Tracking Total 10 | . 5 6 10 6 Tactical Retreats 8 | . . 1 2 5 Traps | -11 -10 -9 -8 -7 ------- Run | Scr Mat Mat Mat Fac Traps Triggered 6 | . 1 1 3 1 Indirectly . | . . . . . Trap Hack Attempts . | . . . . . Triggered . | . . . . . Disarmed . | . . . . . Reprogrammed . | . . . . . Reused . | . . . . . Traps Extracted . | . . . . . Installed . | . . . . . Triggered 7 | . . . . 7 Machines | -11 -10 -9 -8 -7 ---------- Run | Scr Mat Mat Mat Fac Machines Disabled 15 | . 1 3 7 4 Max in Single Turn 2 | . 1 1 2 2 Garrison Access 1 | . . . . 1 Machines Sabotaged . | . . . . . Garrisons Compromised 1 | . . . . 1 Overloaded Fab Kills . | . . . . . Hacking | -11 -10 -9 -8 -7 --------- Run | Scr Mat Mat Mat Fac Machines Accessed 21 | . 1 5 4 11 Terminals 15 | . 1 4 2 8 Fabricators 2 | . . . . 2 Repair Stations 1 | . . . 1 . Recycling Units 1 | . . 1 . . Scanalyzers 2 | . . . 1 1 Garrison Access . | . . . . . Total Hacks 65 | . 3 17 16 29 Successful 42 | . 3 13 12 14 Failed 23 | . . 4 4 15 Catastrophic 4 | . . 1 . 3 Database Lockouts . | . . . . . Manual . | . . . . . Terminals 44 | . 3 16 10 15 Fabricators 7 | . . . . 7 Repair Stations 3 | . . . 3 . Recycling Units 1 | . . 1 . . Scanalyzers 10 | . . . 3 7 Garrison Access . | . . . . . Terminal Hacks 27 | . 3 12 7 5 Record 11 | . 3 3 4 1 Prototype ID Bank 2 | . . 2 . . Open DSF 3 | . . . . 3 Branch Access Points 1 | . . . . 1 Emergency Access Points 1 | . . 1 . . Alert Level 3 | . . 2 1 . Unreport Threat 2 | . . . 2 . Maintenance Status 1 | . . 1 . . Transport Status 1 | . . 1 . . Investigation Status 1 | . . 1 . . Zone Layout 1 | . . 1 . . Fabricator Hacks 3 | . . . . 3 Load Schematic 2 | . . . . 2 Build 1 | . . . . 1 Repair Station Hacks 3 | . . . 3 . Scan Component 2 | . . . 2 . Repair 1 | . . . 1 . Recycling Unit Hacks 1 | . . 1 . . Retrieve Components 1 | . . 1 . . Scanalyzer 8 | . . . 2 6 Insert Component 4 | . . . 1 3 Analyze 4 | . . . 1 3 Garrison Access Hacks . | . . . . . Unauthorized Hacks . | . . . . . Terminals . | . . . . . Fabricators . | . . . . . Repair Stations . | . . . . . Recycling Units . | . . . . . Scanalyzers . | . . . . . Garrison Access . | . . . . . Data Cores Recovered . | . . . . . Used . | . . . . . Hacking Detections 17 | . 1 4 4 8 Full Trace Events 13 | . . 2 4 7 Feedback Events 1 | . . . . 1 Corruption 1 | . . . . 1 Feedback Blocked . | . . . . . Robot Schematics Acquired . | . . . . . Robots Built . | . . . . . Authchips . | . . . . . Time . | . . . . . Total Robot Build Rating . | . . . . . Part Schematics Acquired 3 | . . . 1 2 Parts Built 1 | . . . . 1 Authchips . | . . . . . Time 28 | . . . . 28 Total Part Build Rating 4 | . . . . 4 Parts Repaired 1 | . . . 1 . Time 38 | . . . 38 . Parts Recycled . | . . . . . Recycled Matter . | . . . . . Retrieved Matter . | . . . . . Retrieved Components 9 | . . 9 . . Parts Scanalyzed 3 | . . . 1 2 Part Schematics Acquired 3 | . . . 1 2 Parts Damaged . | . . . . . Bothacking | -11 -10 -9 -8 -7 ------------ Run | Scr Mat Mat Mat Fac Used RIF Installer . | . . . . . Robots Hacked . | . . . . . Non-combat . | . . . . . Combat . | . . . . . Robot Hacks Applied . | . . . . . Relay Couplers Released 2 | . . . . 2 Machine Destruction 2 | . . . . 2 Fabnet Peak Effective % . | . . . . . Robots Rewired . | . . . . . Allies Hacked . | . . . . . Hacks Repelled . | . . . . . Allies | -11 -10 -9 -8 -7 -------- Run | Scr Mat Mat Mat Fac Total Allies . | . . . . . Largest Group . | . . . . . Highest-Rated Group . | . . . . . Highest-Rated Ally . | . . . . . Total Orders . | . . . . . Ally Attacks . | . . . . . Total Damage . | . . . . . Kills . | . . . . . Allies Corrupted . | . . . . . Allies Melted . | . . . . . Intel | -11 -10 -9 -8 -7 ------- Run | Scr Mat Mat Mat Fac Robot Analysis Total . | . . . . . Derelict Logs Recovered . | . . . . . Drone Launches . | . . . . . Drone Recoveries . | . . . . . Exploration | -11 -10 -9 -8 -7 ------------- Run | Scr Mat Mat Mat Fac Turns Passed 5475 | 70 240 1024 1305 2836 Spaces Moved 2516 | 46 168 621 571 1110 Core 11 | 2 6 . 3 . Treads 140 | . . 45 15 80 Legs 89 | . . . 77 12 Wheels 2276 | 44 162 576 476 1018 Hover . | . . . . . Flight . | . . . . . Fastest Speed 50 | 50 95 95 95 125 Average Speed 143 | 86 98 118 141 166 Slowest Speed 550 | 95 200 160 550 470 Overloaded Moves . | . . . . . Propulsion Burnouts . | . . . . . Robots Hopped . | . . . . . Cave-ins Triggered 1 | . 1 . . . Exploration Rate (%) 32 | 3 35 43 56 25 Regions Visited 4 Branch Regions . Pre-discovered Areas . | . . . . . Known Exits Taken . | . . . . . Unknown Exits Taken 4 | 1 1 1 1 . Scrap Searched . | . . . . . Spaces Dug . | . . . . . Terrain Destroyed 401 | . 15 122 212 52 Melee . | . . . . . Projectile 24 | . . . . 24 AOE 377 | . 15 122 212 28 Terrain Rammed . | . . . . . Walls Destroyed . | . . . . . Machines Disabled . | . . . . . Actions | -11 -10 -9 -8 -7 --------- Run | Scr Mat Mat Mat Fac Total 3702 | 64 217 824 883 1714 Wait 362 | . 19 62 93 188 Move 2512 | 45 167 620 570 1110 Hop . | . . . . . Pick Up 127 | 8 5 23 35 56 Fast Attach 37 | 7 1 3 13 13 Attach 63 | . 2 3 21 37 Detach 2 | . . 1 1 . Swap 87 | . 4 24 21 38 Drop 112 | . 5 28 25 54 Fire 385 | 4 14 58 104 205 Melee . | . . . . . Ram 7 | . . 2 . 5 Kick . | . . . . . Crush . | . . . . . Escape Stasis 8 | . . . . 8 Rewire . | . . . . . Trap . | . . . . . Miscellaneous . | . . . . . Route ------- -11/Scrapyard -10/Materials (discovered 2 exits: *Mat / [*Min]) -9/Materials (discovered 2 exits: *Mat / [*Min]) -8/Materials (discovered 2 exits: *Fac / [*Sto]) -7/Factory (discovered 3 exits: [*Fac] / Low x2) History --------- Turn | Location | Event 32 | -11/Scrapyard | Discovered new exit (range 14) 71 | -11/Scrapyard | Entered Materials 226 | -10/Materials | Crushed by falling debris 226 | -10/Materials | Core integrity fell below 50% 255 | -10/Materials | Discovered new exit (range 10) 271 | -10/Materials | Discovered new exit (range 16) 311 | -10/Materials | Entered another Materials area 311 | -9/Materials | Evolved 2 slots: Propulsion x2 351 | -9/Materials | Build established: Mutant 805 | -9/Materials | Discovered new exit (range 5) 1251 | -9/Materials | Discovered new exit (range 15) 1335 | -9/Materials | Entered another Materials area 1335 | -8/Materials | Evolved 2 slots: Utility x2 1470 | -8/Materials | Lost 3 parts (2n1u) 1588 | -8/Materials | Destroyed 7 combat bots 1664 | -8/Materials | Lost 18 parts (3p7n4u4w) 1856 | -8/Materials | Build established: Scavenger-Mutant 2067 | -8/Materials | Lost 3 parts (1n2u) 2281 | -8/Materials | Destroyed 7 combat bots 2285 | -8/Materials | Discovered new exit (range 13) 2421 | -8/Materials | Repaired Imp. Grenade Launcher 2538 | -8/Materials | Discovered new exit (range 15) 2640 | -8/Materials | Entered Factory 2640 | -7/Factory | Evolved 2 slots: Utility x2 2903 | -7/Factory | Identified exit to DSF 3534 | -7/Factory | Cargo convoy interrupted 3666 | -7/Factory | Identified exit to Lower Caves 4459 | -7/Factory | Fabricated Imp. Field Recycling Unit (x1) 4988 | -7/Factory | Core integrity fell below 50% 5039 | -7/Factory | Discovered new exit (range 13) 5156 | -7/Factory | Lost 13 parts (6n4u3w) 5404 | -7/Factory | Core integrity fell below 20% 5440 | -7/Factory | First assault squad dispatched 5476 | -7/Factory | Destroyed by S-27 Virus with Autogun Last Messages --------------- 05447_ System corrupted: Matter fused (-10). 05448_ Arc Projector destroyed. 05452_ Hvy. Laser destroyed. 05452_ Slug penetrates Construction Platform. 05452_ Wheel destroyed. 05455_ U-05 Engineer builds a Wall. 05458_ Penetrated by Slug. 05459_ U-05 Engineer builds a Wall. 05460_ Wheel destroyed. 05462_ <4RXX,BFUC>V P&QQ0ZATY 05467_ Slammed into S-27 Virus. 05467_ Destroyed VTOL Module. 05467_ S-27 Virus system corrupted by crushing effect. 05467_ Coolant Injector broken. 05467_ Destabilizing: Short circuit. 05467_ Carbon-fiber Leg destroyed. 05467_ R-06 Scavenger collects Hrd. Medium Armor Plating. 05468_ Slammed into S-27 Virus. 05471_ R-06 Scavenger collects Corrupted Sml. Storage Unit. 05473_ U-05 Engineer lays Concrete. Map ----- +----------------------------------------------------+ | ?????# #??????????????? | | ?????# #??????????????? | | ?????# #??????????????? | | ?????# #??????????????? | | ?????# #???? ????????? | | ??#########+####+## ????????? | | ??# # ### ????????? | | ??#""" + ????????? | | ??#""" # #######?????????????? | | ??#""" ## ##???????????????????? | | ??# ## #????????????????????? | | ??# ## #????????????????????? | | ??######### #????????????????????? | | ??????????# #????????????????????? | | ?????????## #????????????????????? | | ?????????#" #????????????????????? | | ?????????## #????????????????????? | | ??????????# #????????????????????? | | ??????????# #????????????????????? | | ??????????# #????????????????????? | | ?????????## #????????????????????? | | ?????????## #????????????????????? | | ?????????## #????????????????????? | | ??????????# ##???????????????????? | | ?????######+#######??????????????? | | ?????# @ #??????????????? | | ?????# * #??????????????? | | ?????# s #??????????????? | | ?????#ss % rk #??????????????? | | ?????# """" #??????????????? | | ?????#h"""" #?############# | | ?????# """ % u#? | | ?????# """ %!#% ^ | | ?????# """ %=%#% | | ?????# """ %!!!+!= | | ????## """ [%%=#*%% | | ????#" H !! [ # !% ###+###### | | ????##########u####? #????????? | | ???????????? #????????? | | ???????????# % #????????? | | ???????????# #????????? | | ???????????# #????????? | | ??????????? #????????? | | ?????????? ##" #????????? | | ????????? ??# #????????? | | ???????? ??? #????????? | | ??????? ######??? #????????? | | ?????? ????????? < #????????? | | ????? ??????????? #????????? | | ???? ???????????? #????????? | +----------------------------------------------------+ Best States ------------- Heat Dissipation 80 Energy Generation 18 Energy Capacity 300 Matter Stores 474 Matter Capacity 500 Sight Range 20 Robot Scan Range 15 Terrain Scan Density 10 Armor Coverage 825 Resistance: KI 20 Evasion (%) 44 Targeting Accuracy 14 Melee Accuracy 6 Recoil Reduction 4 Salvage Targeting 2 Item Schematics ----------------- Flak Cannon | -8/Materials | Scanalyzed Imp. Field Recycling Unit | -7/Factory | Scanalyzed Wheel | -7/Factory | Scanalyzed Robot Schematics ------------------ None Fabricated ------------ Imp. Field Recycling Unit | x1 | -7/Factory Alien Tech Used ----------------- None Achievements -------------- Just What I Needed Maybe Next Time I'll Detach My Launcher Party Time Challenges ------------ None Game ------ Seed PlasmaCompactRecalibrator Manual? 0 Play Time 01:29:22 Cumulative 24.4 hours Start 2022.06.10 @ 14:11:16 End 2022.06.10 @ 15:42:54 Sessions 1 Manual Loads 0 Difficulty Rogue Special Mode None Game No. 20 Rogue 14 Adventurer 6 Explorer 0 Win Type - Total 0 Types 0/0/0/0/0/0/0/0/0 Lore% 8 Gallery% 25 Achievement% 18 Wizard Run 0 Options --------- ASCII 0 Keyboard 0 Movement Mouse Keybinds 0 Fullscreen 1 Font 18/X11 Map View 76x50 Tactical HUD 1 Map Filters NONE Filters NONE Steam 1 RUN: 311d7d4f-86cf-49a9-96b9-73c2ee7f3889